Cogmind - Beta 17 @@@ ROGUE MODE // 2026.07.03 @ 21:29:46 Player: THN-L0C Result: Destroyed by NL-APQ(R) with Subdweller Machine Gun Performance ------------- Evolutions (0) 0 Regions Visited (3) 600 Robots Destroyed (33) 165 Value Destroyed (685) 685 Prototype IDs (0) 0 Alien Tech Used (0) 0 Bonus (0) 0 TOTAL SCORE: 1450 Bonus ------- None Cogmind --------- Core Integrity 0/250 Matter 256/300 Energy 109/125 System Corruption 0% Temperature Cool (6) Movement Treading (160) Location -10/Subcaves Parts ------- > --- POWER (1) -------- Light Ion Engine > --- PROPULSION (2) --- Spiked Treads Spiked Treads > --- UTILITY (2) ------ Scrap Shield > --- WEAPON (2) ------- Heavy Assault Rifle Mining Laser > --- INVENTORY (5) ---- Armored Wheel Terrain Scan Processor Seismic Detector Peak State ------------ > --- POWER ------------ Light Nuclear Core > --- PROPULSION ------- Armored Wheel Armored Wheel > --- UTILITY ---------- Large Storage Unit Targeting Computer > --- WEAPON ----------- Heavy Assault Rifle Heavy Assault Rifle > --- INVENTORY -------- Light Ion Engine Light Treads Compact Wheel Armored Wheel Armored Wheel Small Storage Unit Large Matter Pod Improved Terrain Scanner Improved Terrain Scanner Terrain Scan Processor Seismic Detector Seismic Detector Heavy Assault Rifle Heavy Assault Rifle Mining Laser [Rating: 15] Favorites ----------- Power Light Ion Engine Engine Light Ion Engine Power Core Light Nuclear Core Propulsion Armored Wheel Treads Spiked Treads Wheel Armored Wheel Utility High-capacity Storage Unit Device Improved Terrain Scanner Storage High-capacity Storage Unit Processor Targeting Computer Protection Scrap Shield Weapon Heavy Assault Rifle Ballistic Gun Heavy Assault Rifle Launcher Grenade Launcher Special Weapon Mining Laser Build | -11 -10 -10 -10 ------- Run | Yrd Mat Min Sub Slots Evolved . | . . . . Power . | . . . . Propulsion . | . . . . Utility . | . . . . Weapon . | . . . . Parts Attached 27 | 7 10 1 9 Power 5 | 1 2 . 2 Engine 3 | 1 1 . 1 Core 2 | . 1 . 1 Reactor . | . . . . Propulsion 6 | 2 2 . 2 Treads 4 | 2 . . 2 Leg . | . . . . Wheel 2 | . 2 . . Hover . | . . . . Flight . | . . . . Utility 8 | 2 3 1 2 Device 2 | 1 . . 1 Storage 3 | 1 1 1 . Processor 2 | . 2 . . Hackware . | . . . . Protection 1 | . . . 1 Artifact . | . . . . Weapon 8 | 2 3 . 3 Energy Gun . | . . . . Energy Cannon . | . . . . Ballistic Gun 6 | 2 2 . 2 Ballistic Cannon . | . . . . Launcher 1 | . . . 1 Special Weapon 1 | . 1 . . Impact Weapon . | . . . . Slashing Weapon . | . . . . Piercing Weapon . | . . . . Special Melee Weapon . | . . . . Unidentified Prototypes . | . . . . Parts Lost 4 | . . . 4 Power 2 | . . . 2 Propulsion . | . . . . Utility . | . . . . Weapon 2 | . . . 2 Highest Loss Streak 3 | . . . 3 To Critical Strikes . | . . . . Average Backups 14 | 2 10 15 16 Power . | . 1 1 . Propulsion 4 | . 2 4 5 Utility 6 | . 4 6 6 Weapon 2 | . 2 4 3 Tool/Special . | . . . . Unused Backups 11 | . . . 11 Power . | . . . . Propulsion 4 | . . . 4 Utility 5 | . . . 5 Weapon 1 | . . . 1 Tool/Special 1 | . . . 1 Average Slot Usage (%) 97 | . 100 100 96 Engine 10 | . 11 . 11 Core 3 | . 2 14 2 Treads 13 | . 16 . 14 Wheel 14 | . 11 28 13 Device 12 | . 9 . 13 Storage 14 | . 14 14 14 Processor 1 | . 4 14 . Ballistic Gun 24 | . 25 28 24 Special Weapon 1 | . 2 . . Peak Build Rating 15 | 8 15 15 15 Average Rating 13 | 6 10 15 14 On Entrance 9 | . 8 15 15 Avg Prop Armor Cover (%) . | . . . . Naked Turns . | . . . . Heaviest Build 52 | 13 31 51 52 Greatest Support 40 | 40 40 24 40 Greatest Overweight (x) 2 | 2 1 2 2 Average Overweight (x) 1 | . . 1 1 Largest Inventory Capacity 20 | 8 15 20 20 Average Capacity 18 | 7 11 19 19 Most Carried 18 | 6 15 16 18 Average Carried 15 | 2 10 15 16 Final Capacity 20 | 8 15 20 5 Final Carried 16 | 6 15 16 3 Class Distribution -------------------- 100% | Mutant Dominant Class ---------------- Mutant | -10/Materials Mutant | -10/Mines Mutant | -10/Subcaves Resources | -11 -10 -10 -10 ----------- Run | Yrd Mat Min Sub Matter Collected 1084 | 324 277 103 380 Remotely . | . . . . Salvage Created 1062 | 168 376 42 476 Parts 78 | 15 25 5 33 Haulers Intercepted 1 | . 1 . . Recyclers Shooed 1 | 1 . . . Parts Field Recycled . | . . . . Retrieved Matter . | . . . . Parts Self-Destructed 11 | . . . 11 Prevented . | . . . . Parts Restored . | . . . . Kills | -11 -10 -10 -10 ------- Run | Yrd Mat Min Sub Combat Hostiles Destroyed 24 | . 9 3 12 Guns 24 | . 9 3 12 Classes Destroyed 10 | 2 5 . 3 Worker 1 | . 1 . . Tunneler 5 | 5 . . . Hauler 1 | . 1 . . Recycler 1 | 1 . . . Watcher 1 | . 1 . . Swarmer 11 | . 5 3 3 Grunt 6 | . 4 . 2 Sentry 1 | . . . 1 Artisan 2 | . . . 2 Subdweller 6 | . . . 6 Best Kill Streak 3 | 2 3 3 3 Combat Bots Only 3 | . 3 3 3 Max Kills in Single Turn 2 | 1 2 2 2 Gunslinging 1 | . 1 1 . Exploded . | . . . . Melee . | . . . . Uniques/NPCs Destroyed . | . . . . Combat | -11 -10 -10 -10 -------- Run | Yrd Mat Min Sub Hostile Shots Fired 120 | . 50 3 67 Missed 25 | . 7 . 18 Hits 95 | . 43 3 49 Projectile 95 | . 43 3 49 Critical Strikes 1 | . . . 1 Damage Taken 1259 | . 391 24 844 Core 265 | . 82 . 183 Absorbed by Shields . | . . . . Core Remaining (%) 100 | 100 . . . Volleys Fired 111 | 9 27 2 73 Largest 2 | 2 2 2 2 Hottest 100 | 40 100 46 100 Shots Fired 180 | 18 49 4 109 Gun 141 | 18 44 4 75 Cannon . | . . . . Launcher 1 | . . . 1 Special 38 | . 5 . 33 Kinetic 141 | 18 44 4 75 Thermal 38 | . 5 . 33 Explosive 1 | . . . 1 Electromagnetic . | . . . . Robot Hit Streak 15 | 6 8 5 15 Robot Miss Streak 4 | 1 4 . 2 Penetration Max . | . . . . Secondary Targets 4 | . 2 1 1 Max Gunslinging Chain 1 | . 1 1 1 Shots Hit Robots 93 | 13 28 3 49 Core Hits 47 | 7 15 3 22 Critical Kills . | . . . . Critical Parts Destroyed 1 | . 1 . . Critical Strikes 1 | . 1 . . Destroy 1 | . 1 . . Melee Attacks . | . . . . Impact . | . . . . Slashing . | . . . . Piercing . | . . . . Sneak Attacks . | . . . . Combat Hostiles . | . . . . Follow-up Attacks . | . . . . Damage Inflicted 1326 | 157 368 45 756 Guns 1326 | 157 368 45 756 Cannons . | . . . . Explosions . | . . . . Melee . | . . . . Ramming . | . . . . Kinetic 1326 | 157 368 45 756 Thermal . | . . . . Explosive . | . . . . Electromagnetic . | . . . . Impact . | . . . . Slashing . | . . . . Piercing . | . . . . Highest Corruption . | . . . . Average Corruption . | . . . . Corruption Purged . | . . . . Corruption Blocked . | . . . . Overload Shots . | . . . . Overflow Damage . | . . . . Projectiles . | . . . . Explosions . | . . . . Melee . | . . . . Knockbacks . | . . . . Impact . | . . . . Kinetic . | . . . . Secondary . | . . . . Self-Inflicted Damage 17 | . . . 17 Shots 1 | . . . 1 Rammed . | . . . . Targets Rammed . | . . . . Kicked . | . . . . Crushed . | . . . . Highest Temperature 40 | . 40 . . Average Temperature 15 | . 15 . . Received Heat Transfer 300 | . 69 . 231 Siege Activations . | . . . . Martial Activations . | . . . . Shielding Activations . | . . . . Robots Disrupted . | . . . . Combat Hostiles . | . . . . Robots Corrupted . | . . . . Combat Hostiles . | . . . . Parts Fried . | . . . . Impact Corruptions . | . . . . Robots Melted . | . . . . Combat Hostiles . | . . . . Parts Melted 1 | . . . 1 Heat Transferred . | . . . . Parts Sabotaged . | . . . . Parts Stolen . | . . . . Parts Stripped . | . . . . Power Chain Reactions . | . . . . Alert | -11 -10 -10 -10 ------- Run | Yrd Mat Min Sub Maximum Alert Level . | . . . . Low Security (%) 100 | 100 100 100 . Level 1 . | . . . . Level 2 . | . . . . Level 3 . | . . . . Level 4 . | . . . . Level 5 . | . . . . High Security . | . . . . Max Security . | . . . . Peak Influence 78 | 10 78 77 . Initial 7 | . . 7 . Average 22 | 1 30 16 . Influence Increases 509 | 30 264 70 145 Destroy 0b10 Robot/C 360 | . 180 60 120 Destroy 0b10 Robot/NC 45 | 30 15 . . Destroy Leader 64 | . 44 10 10 Successful Hack 18 | . 18 . . Destroy Structure 7 | . 7 . . Lose Combat Pursuer 15 | . . . 15 Influence Decreases 509 | 30 243 91 145 Entered New Map 14 | . . 14 . Time Decay 485 | 30 243 77 135 Lost Part 10 | . . . 10 Squads Dispatched 2 | . 2 . . Investigation 1 | . 1 . . Extermination . | . . . . Reinforcement 1 | . 1 . . Assault . | . . . . Garrison . | . . . . Intercept . | . . . . Searches Triggered . | . . . . Construction Impeded . | . . . . Haulers Reinforced . | . . . . Active Scanning Responses . | . . . . Cargo Convoy Interrupts . | . . . . Stealth | -11 -10 -10 -10 --------- Run | Yrd Mat Min Sub Distress Signals 1 | . 1 . . Communications Jammed . | . . . . Distress Signals . | . . . . Times Spotted 33 | . 16 3 14 Peak Tracking Total 5 | . 5 3 2 Tactical Retreats 1 | . . . 1 Traps | -11 -10 -10 -10 ------- Run | Yrd Mat Min Sub Traps Triggered 1 | . . . 1 Indirectly . | . . . . Trap Hack Attempts . | . . . . Triggered . | . . . . Disarmed . | . . . . Reprogrammed . | . . . . Reused . | . . . . Traps Extracted . | . . . . Installed . | . . . . Triggered . | . . . . Machines | -11 -10 -10 -10 ---------- Run | Yrd Mat Min Sub Machines Disabled . | . . . . Max in Single Turn . | . . . . Machines Repaired . | . . . . Machines Dismantled . | . . . . Machines Sabotaged . | . . . . Overloaded Fab Kills . | . . . . Hacking | -11 -10 -10 -10 --------- Run | Yrd Mat Min Sub Machines Accessed 5 | . 4 . 1 Terminals 4 | . 4 . . Fabricators . | . . . . Repair Stations . | . . . . Recycling Units . | . . . . Scanalyzers . | . . . . Garrison Access . | . . . . Total Hacks 11 | . 10 . 1 Successful 4 | . 3 . 1 Failed 7 | . 7 . . Catastrophic 2 | . 2 . . Database Lockouts . | . . . . Manual 9 | . 9 . . Terminals 10 | . 10 . . Fabricators . | . . . . Repair Stations . | . . . . Recycling Units . | . . . . Scanalyzers . | . . . . Garrison Access . | . . . . Terminal Hacks 4 | . 3 . 1 Part Schematic 1 | . 1 . . Robot Analysis 1 | . 1 . . Open Door 1 | . . . 1 Zone Layout 1 | . 1 . . Fabricator Hacks . | . . . . Repair Station Hacks . | . . . . Recycling Unit Hacks . | . . . . Scanalyzer . | . . . . Garrison Access Hacks . | . . . . Unauthorized Hacks . | . . . . Terminals . | . . . . Fabricators . | . . . . Repair Stations . | . . . . Recycling Units . | . . . . Scanalyzers . | . . . . Garrison Access . | . . . . Data Cores Recovered . | . . . . Used . | . . . . Hacking Detections 4 | . 4 . . Full Trace Events . | . . . . Feedback Events . | . . . . Feedback Blocked . | . . . . Robot Schematics Acquired . | . . . . Robots Built . | . . . . Authchips . | . . . . Time . | . . . . Total Robot Build Rating . | . . . . Part Schematics Acquired 1 | . 1 . . Parts Built . | . . . . Authchips . | . . . . Time . | . . . . Total Part Build Rating . | . . . . Part Studies Acquired . | . . . . Parts Repaired . | . . . . Time . | . . . . Parts Recycled . | . . . . Recycled Matter . | . . . . Retrieved Matter . | . . . . Retrieved Components . | . . . . Parts Scanalyzed . | . . . . Part Schematics Acquired . | . . . . Parts Damaged . | . . . . Bothacking | -11 -10 -10 -10 ------------ Run | Yrd Mat Min Sub Used RIF Installer . | . . . . Robots Hacked . | . . . . Non-combat . | . . . . Combat . | . . . . Robot Hacks Applied . | . . . . Relay Couplers Released . | . . . . Fabnet Peak Effective % . | . . . . Robots Rewired . | . . . . Allies Hacked . | . . . . Hacks Repelled . | . . . . Allies | -11 -10 -10 -10 -------- Run | Yrd Mat Min Sub Total Allies . | . . . . Largest Group . | . . . . Highest-Rated Group . | . . . . Highest-Rated Ally . | . . . . Total Orders . | . . . . Ally Attacks . | . . . . Total Damage . | . . . . Kills . | . . . . Allies Corrupted . | . . . . Allies Melted . | . . . . Intel | -11 -10 -10 -10 ------- Run | Yrd Mat Min Sub Active Infowar (turns) 4119 | 142 474 . 3503 Terrain 2738 | . . . 2738 Seismic 1381 | 142 474 . 765 Robot Analysis Total 1 | . 1 . . Derelict Logs Recovered 3 | . . 2 1 Drone Launches . | . . . . Drone Recoveries . | . . . . Exploration | -11 -10 -10 -10 ------------- Run | Yrd Mat Min Sub Turns Passed 4827 | 207 747 343 3530 Spaces Moved 1957 | 102 417 278 1160 Core 8 | 8 . . . Treads 711 | 94 173 . 444 Legs . | . . . . Wheels 1238 | . 244 278 716 Hover . | . . . . Flight . | . . . . Fastest Speed 50 | 50 105 105 105 Average Speed 153 | 152 128 119 171 Slowest Speed 260 | 160 240 120 260 Overloaded Moves . | . . . . Propulsion Burnouts . | . . . . Robots Hopped . | . . . . Potential Cave-ins 5 | . . . 5 Cave-ins Triggered . | . . . . Exploration Rate (%) 50 | 5 71 62 65 Regions Visited 3 Branch Regions 2 Pre-discovered Areas 1 | . . 1 . Known Exits Taken . | . . . . Unknown Exits Taken 3 | 1 1 1 . Scrap Searched 7 | . . 2 5 Spaces Dug 12 | . 3 . 9 Terrain Destroyed 32 | . 4 . 28 Melee . | . . . . Projectile 22 | . 4 . 18 AOE 10 | . . . 10 Terrain Rammed . | . . . . Walls Destroyed . | . . . . Machines Disabled . | . . . . Actions | -11 -10 -10 -10 --------- Run | Yrd Mat Min Sub Total 3509 | 132 568 285 2524 Wait 1376 | 9 94 3 1270 Move 1954 | 101 416 277 1160 Hop . | . . . . Pick Up 23 | 6 10 1 6 Fast Attach 8 | 7 1 . . Attach 5 | . . . 5 Detach 1 | . 1 . . Swap 23 | . 14 1 8 Drop 8 | . 5 1 2 Fire 111 | 9 27 2 73 Melee . | . . . . Ram . | . . . . Kick . | . . . . Crush . | . . . . Escape Stasis . | . . . . Rewire . | . . . . Trap . | . . . . Miscellaneous . | . . . . Route ------- -11/Scrapyard -10/Materials (discovered 3 exits: [*Mat x2] / [*Min]) -10/Mines (discovered 2 exits: [*Mat] / *Sub) -10/Subcaves (discovered 1 exit: [*Mat]) History --------- Turn | Location | Event 5 | -11/Scrapyard | Discovered new exit (range 15) 208 | -11/Scrapyard | Entered Materials 304 | -10/Materials | Build established: Mutant 606 | -10/Materials | Discovered new exit (range 12) 710 | -10/Materials | Discovered new exit (range 16) 843 | -10/Materials | Discovered new exit (range 16) 908 | -10/Materials | Derelicts attacked the area 955 | -10/Materials | Entered Mines 1083 | -10/Mines | Learned location of Zion (-6) 1107 | -10/Mines | Discovered new exit (range 9) 1113 | -10/Mines | Learned Materials stockpile data 1219 | -10/Mines | Discovered new exit (range 5) 1298 | -10/Mines | Entered Subcaves 1299 | -10/Subcaves | Approached by a straggling Scientist 1365 | -10/Subcaves | Learned 2 Materials zone layouts 1574 | -10/Subcaves | Discovered new exit (range 7) 1913 | -10/Subcaves | Core integrity fell below 50% 1982 | -10/Subcaves | Lost 3 parts (1p2w) 2886 | -10/Subcaves | Disturbed a concealed Subdweller 3607 | -10/Subcaves | A swath of the cavern ceiling suddenly collapsed 4504 | -10/Subcaves | Core integrity fell below 20% 4828 | -10/Subcaves | Destroyed by NL-APQ(R) with Subdweller Machine Gun Last Messages --------------- 03004_ Acquired 5 matter. 03006_ Acquired Spk. Treads. 03010_ Acquired 20 matter. 03012_ Searching scrap... 03012_ Found Piercing Trap. 03012_ Found Sub. Beam Cannon. 03012_ Found 68 Matter. 03017_ Acquired Sub. Beam Cannon. 03432_ Connecting with UFD SUBCON Station... 03432_ Current location identified: Subcaves >>Open Door Sealed Heavy Doors opened. 03522_ Subatomizers dissect the Sub. Machine Gun. A swath of the cavern ceiling suddenly collapses. 04505_ 1U-NJZ(R) destroyed. 04703_ Triggered Piercing Trap. 04703_ Spikes shoot up from the floor. 04703_ Critical hit (Impale). 04825_ Dropped Hcp. Storage Unit. 04826_ Dropped Imp. Terrain Scanner. Map ----- +----------------------------------------------------+ | ##??? ???????????????????????? | | ### #### ???????????????????????? | | ##?## ## ???????????????????????? | | #???# ### #????????????????????????? | | ????# #???????????????????????????????????? | | ??#### #### #???????????????????????????????????? | | ### # ##??? #???????????????????????????????????? | | ##???? ##???????????????????????????????????? | | ## ##????##????????????????????????????????????? | | ### ####???????????????????????????????????????? | | # #???????????????????????????????????????? | | ##???????????????????? ?????????????????? | | #???????? ?????????????????????????????? | | #### #????????????????????????????????????? | | ## ##????##???????????#????????????????????????? | | ?## ##??##???#??????????????????????????????????? | | ??# *### ## #????????#?????????????#???????????? | | ??# &%& ##???????????????? ?#??????????????? | | ??# [!= ;#######????????????????????????#??? | | ??# ## # ;; #?????????????#????#???????? | | ??## #### ; #####?????#?????#?????????? | | ???# ## R ##?###????????????????? | | ??## &%%& "###"##????#??????????? | | ?## R |]="! #??????#????????? | | ?# # ## ; ;;; [!!=""" "#??#?#??????????? | | ?# ####??""""" ## =@!!###" ##??????##??????? | | ## #####???####### !=]##?# #??????????????? | | # ## ##????????#########??## ##???#??#???????? | | # ######???????##??? ?#" #??#???????????? | | # # #?????## "?????## ##?????#???#????? | | # ### ##????## ""??## "###????#???????? | | ## ###?#### #?????? """?#" " #???????#?????? | | ?####?????# #?##???# """#?#" ""#??????????#??? | | ??????????## ## #???# " "#?#" "#?????????????? | | ?????????## #?###""" ??## ##?????????????? | | ????###### #?# """#???## "#??????#??????? | | ???## #??# " ###?## ""#?????????????? | | ???# ##??# # ### ""##?????????????? | | ???# #?## ""#???#??????????? | | ??## ##??# #???#??#???????? | | ?## #???# ## # ## #?????????????? | | ## ####### #######?##?????????????? | | # #?## ##?????????#????????????? | | ### ## #?# ###????#???#????#?????????? | | ??####?# #?# #????????????#???#????????? | | ??????## #?## ##?????#??##???????????????? | | ????### ##### ######??????#??????????????? | | ????# #### ## #????#???#????????????? | | ????# ### ##?????#??????????????? | | ###### ^ ###??????????????????? | +----------------------------------------------------+ Best States ------------- Heat Dissipation 25 Energy Generation 14 Energy Capacity 160 Matter Stores 300 Matter Capacity 300 Sight Range 16 Terrain Scan Range 16 Terrain Scan Density 10 Evasion (%) 40 Targeting Accuracy 5 Recoil Reduction 2 Item Schematics ----------------- Hcp. Storage Unit | -10/Materials | Hacked Robot Schematics ------------------ None Fabricated ------------ Nothing Repaired ---------- Nothing Studied --------- None Alien Tech Used ----------------- None Achievements -------------- None Challenges ------------ None Game ------ Seed ZionitePietyReconfigurator Manual? 0 Play Time 00:21:18 Cumulative 429.3 hours Start 2026.07.03 @ 21:05:00 End 2026.07.03 @ 21:29:46 Sessions 1 Manual Loads 0 Difficulty Rogue Special Mode None Game No. 316 Rogue 316 Adventurer 0 Explorer 0 Win Type - Total 9 Types 4/0/3/2/0/0/0/0/0/0 Lore% 78 Gallery% 73 Achievement% 54 Wizard Run 0 Options --------- Layout 2 ASCII 0 Keyboard 1 Movement Vi Keybinds 0 Fullscreen 2 Font 32/SmallcapsGlow Map View 77x44 Zoom Use 0% Tactical HUD 1 Map Filters NONE Filters NONE Steam 1 RUN: ebcbc777-eb0a-4fdf-9db6-0da563cb4b21